Cogmind - Beta 15 @@@ ROGUE MODE // 2025.09.20 @ 06:37:31 Player: Lillith Result: Destroyed by A4-1BY(R) with Subdweller Beam Cannon Performance ------------- Evolutions (0) 0 Regions Visited (2) 400 Robots Destroyed (10) 50 Value Destroyed (206) 206 Prototype IDs (0) 0 Alien Tech Used (0) 0 Bonus (0) 0 TOTAL SCORE: 656 Bonus ------- None Cogmind --------- Core Integrity 0/250 Matter 228/300 Energy 100/100 System Corruption 4% Temperature Cool (9) Movement Rolling (140) Ox4 Location -10/Subcaves Parts ------- > --- POWER (1) -------- (None) > --- PROPULSION (2) --- Improved Treads Wheel > --- UTILITY (2) ------ High-capacity Storage Unit > --- WEAPON (2) ------- Heavy Assault Rifle Heavy Assault Rifle > --- INVENTORY (20) --- Subdweller Power Source Improved Treads Improved Treads Subdweller Monowheel Small Storage Unit Large Matter Pod (150) Machine Analyzer Terrain Scanner Medium Laser Medium Laser Light Assault Rifle Heavy Assault Rifle Light Cannon Light Cannon Grenade Launcher Grenade Launcher Peak State ------------ > --- POWER ------------ Light Ion Engine > --- PROPULSION ------- Improved Treads Wheel > --- UTILITY ---------- High-capacity Storage Unit Seismic Detector > --- WEAPON ----------- Heavy Assault Rifle Heavy Assault Rifle > --- INVENTORY -------- Ion Engine Light Treads Light Treads Improved Treads Aluminum Leg Aluminum Leg Wheel Small Storage Unit Large Matter Pod Sensor Array Terrain Scanner Medium Laser Medium Laser Light Assault Rifle Heavy Assault Rifle Heavy Assault Rifle Light Cannon Light Cannon [Rating: 12] Favorites ----------- Power Light Ion Engine Engine Light Ion Engine Propulsion Wheel Treads Improved Treads Wheel Wheel Utility High-capacity Storage Unit Device Seismic Detector Storage High-capacity Storage Unit Weapon Heavy Assault Rifle Energy Gun Medium Laser Ballistic Gun Heavy Assault Rifle Build | -11 -10 -10 ------- Run | Yrd Mat Sub Slots Evolved . | . . . Power . | . . . Propulsion . | . . . Utility . | . . . Weapon . | . . . Parts Attached 15 | 7 4 4 Power 1 | 1 . . Engine 1 | 1 . . Core . | . . . Reactor . | . . . Propulsion 5 | 2 1 2 Treads 3 | 1 1 1 Leg . | . . . Wheel 2 | 1 . 1 Hover . | . . . Flight . | . . . Utility 4 | 2 1 1 Device 2 | 1 . 1 Storage 2 | 1 1 . Processor . | . . . Hackware . | . . . Protection . | . . . Artifact . | . . . Weapon 5 | 2 2 1 Energy Gun 2 | 2 . . Energy Cannon . | . . . Ballistic Gun 3 | . 2 1 Ballistic Cannon . | . . . Launcher . | . . . Special Weapon . | . . . Impact Weapon . | . . . Slashing Weapon . | . . . Piercing Weapon . | . . . Special Melee Weapon . | . . . Unidentified Prototypes . | . . . Parts Lost 6 | . . 6 Power 1 | . . 1 Propulsion 2 | . . 2 Utility 2 | . . 2 Weapon 1 | . . 1 Highest Loss Streak 5 | . . 5 To Critical Strikes . | . . . Average Backups 14 | 2 13 19 Power . | . 1 1 Propulsion 4 | 1 4 5 Utility 3 | . 3 4 Weapon 5 | . 4 8 Tool/Special . | . . . Unused Backups 17 | . 2 15 Power 2 | . . 2 Propulsion 6 | . 2 4 Utility 3 | . . 3 Weapon 6 | . . 6 Tool/Special . | . . . Average Slot Usage (%) 98 | . 99 95 Engine 13 | . 14 13 Treads 13 | . 14 13 Wheel 13 | . 14 13 Device 12 | . 14 10 Storage 13 | . 13 14 Energy Gun 10 | . 16 . Ballistic Gun 17 | . 11 28 Peak Build Rating 12 | 7 12 12 Average Rating 9 | 5 9 11 On Entrance 6 | . 7 12 Naked Turns . | . . . Heaviest Build 50 | 13 50 50 Greatest Support 23 | 20 23 10 Greatest Overweight (x) 4 | . 4 4 Average Overweight (x) 3 | . 3 4 Largest Inventory Capacity 20 | 8 20 20 Average Capacity 18 | 7 19 20 Most Carried 20 | 6 20 20 Average Carried 14 | 3 13 19 Final Capacity 20 | 8 20 20 Final Carried 20 | 6 20 16 Class Distribution -------------------- 100% | Mutant Dominant Class ---------------- Mutant | -10/Materials Mutant | -10/Subcaves Resources | -11 -10 -10 ----------- Run | Yrd Mat Sub Matter Collected 581 | 259 260 62 Remotely . | . . . Salvage Created 414 | 129 217 68 Parts 19 | 7 7 5 Haulers Intercepted 2 | . 2 . Recyclers Shooed . | . . . Parts Field Recycled . | . . . Retrieved Matter . | . . . Parts Self-Destructed 15 | . . 15 Prevented . | . . . Kills | -11 -10 -10 ------- Run | Yrd Mat Sub Combat Hostiles Destroyed 5 | . 3 2 Guns 5 | . 3 2 Classes Destroyed 5 | 2 2 1 Tunneler 2 | 2 . . Hauler 2 | . 2 . Recycler 1 | 1 . . Grunt 3 | . 3 . Subdweller 2 | . . 2 Best Kill Streak 2 | 2 2 2 Combat Bots Only 2 | . 1 2 Max Kills in Single Turn 1 | 1 1 1 Gunslinging . | . . . Exploded . | . . . Melee . | . . . Uniques/NPCs Destroyed . | . . . Combat | -11 -10 -10 -------- Run | Yrd Mat Sub Hostile Shots Fired 59 | . 12 47 Missed 15 | . 3 12 Hits 44 | . 9 35 Projectile 44 | . 9 35 Critical Strikes 2 | . . 2 Damage Taken 994 | . 146 848 Core 253 | . 21 232 Absorbed by Shields . | . . . Regen/Repaired (Parts) 290 | . 290 . Core Remaining (%) 100 | 100 . . Volleys Fired 47 | 7 22 18 Largest 2 | 2 2 2 Hottest 100 | 100 100 46 Shots Fired 94 | 14 44 36 Gun 94 | 14 44 36 Cannon . | . . . Launcher . | . . . Special . | . . . Kinetic 47 | . 11 36 Thermal 47 | 14 33 . Explosive . | . . . Electromagnetic . | . . . Robot Hit Streak 10 | 6 5 10 Robot Miss Streak 4 | 1 4 2 Penetration Max . | . . . Secondary Targets . | . . . Shots Hit Robots 62 | 11 25 26 Core Hits 20 | 4 11 5 Critical Kills . | . . . Critical Parts Destroyed 1 | . . 1 Critical Strikes 3 | . 2 1 Burn 2 | . 2 . Destroy 1 | . . 1 Melee Attacks . | . . . Impact . | . . . Slashing . | . . . Piercing . | . . . Sneak Attacks . | . . . Combat Hostiles . | . . . Follow-up Attacks . | . . . Damage Inflicted 882 | 135 321 426 Guns 882 | 135 321 426 Cannons . | . . . Explosions . | . . . Melee . | . . . Ramming . | . . . Kinetic 523 | . 97 426 Thermal 359 | 135 224 . Explosive . | . . . Electromagnetic . | . . . Impact . | . . . Slashing . | . . . Piercing . | . . . Highest Corruption 4 | . 4 4 Average Corruption 3 | . 3 4 Corruption Purged . | . . . Corruption Blocked . | . . . Effects 25 | . 17 8 Message Errors 5 | . 4 1 Matter Fused 6 | . 4 2 Heat Flow Errors 2 | . 2 . Energy Discharges 3 | . 2 1 Data Loss (minor) 3 | . . 3 Data Loss (major) 2 | . 2 . Misfires 2 | . 1 1 Alerts 1 | . 1 . Weapon Failures 1 | . 1 . Overload Shots . | . . . Overflow Damage . | . . . Projectiles . | . . . Explosions . | . . . Melee . | . . . Knockbacks . | . . . Impact . | . . . Kinetic . | . . . Secondary . | . . . Self-Inflicted Damage . | . . . Shots . | . . . Rammed . | . . . Targets Rammed . | . . . Kicked . | . . . Crushed . | . . . Highest Temperature 274 | 156 271 274 Average Temperature 97 | 70 97 135 Received Heat Transfer 882 | . 54 828 Effects 1 | . 1 . Interference 1 | . 1 . Siege Activations . | . . . Martial Activations . | . . . Shielding Activations . | . . . Robots Disrupted . | . . . Combat Hostiles . | . . . Robots Corrupted . | . . . Combat Hostiles . | . . . Parts Fried . | . . . Impact Corruptions . | . . . Robots Melted . | . . . Combat Hostiles . | . . . Parts Melted 1 | . 1 . Heat Transferred 1221 | 407 814 . Parts Sabotaged . | . . . Parts Stolen . | . . . Parts Stripped . | . . . Power Chain Reactions . | . . . Alert | -11 -10 -10 ------- Run | Yrd Mat Sub Maximum Alert Level . | . . . Low Security (%) 100 | 100 100 . Level 1 . | . . . Level 2 . | . . . Level 3 . | . . . Level 4 . | . . . Level 5 . | . . . High Security . | . . . Max Security . | . . . Peak Influence 47 | 5 47 . Initial 3 | . 3 . Average 6 | 1 6 . Influence Increases 165 | 15 150 . Destroy 0b10 Robot/C 60 | . 60 . Destroy 0b10 Robot/NC 25 | 15 10 . Destroy Leader 14 | . 14 . Successful Hack 6 | . 6 . Select Force Hacks 60 | . 60 . Influence Decreases 165 | 10 155 . Entered New Map 2 | . 2 . Time Decay 163 | 10 153 . Squads Dispatched 3 | . 3 . Investigation 2 | . 2 . Extermination . | . . . Reinforcement 1 | . 1 . Assault . | . . . Garrison . | . . . Intercept . | . . . Searches Triggered . | . . . Construction Impeded . | . . . Haulers Reinforced . | . . . Active Scanning Responses . | . . . Cargo Convoy Interrupts . | . . . Stealth | -11 -10 -10 --------- Run | Yrd Mat Sub Distress Signals 4 | . 4 . Communications Jammed . | . . . Distress Signals . | . . . Times Spotted 12 | . 7 5 Peak Tracking Total 3 | . 1 3 Tactical Retreats . | . . . Traps | -11 -10 -10 ------- Run | Yrd Mat Sub Traps Triggered 3 | . 3 . Indirectly . | . . . Trap Hack Attempts . | . . . Triggered . | . . . Disarmed . | . . . Reprogrammed . | . . . Reused . | . . . Traps Extracted . | . . . Installed . | . . . Triggered . | . . . Machines | -11 -10 -10 ---------- Run | Yrd Mat Sub Machines Disabled . | . . . Max in Single Turn . | . . . Machines Repaired . | . . . Machines Dismantled . | . . . Machines Sabotaged . | . . . Overloaded Fab Kills . | . . . Hacking | -11 -10 -10 --------- Run | Yrd Mat Sub Machines Accessed 6 | . 6 . Terminals 3 | . 3 . Fabricators . | . . . Repair Stations 1 | . 1 . Recycling Units 2 | . 2 . Scanalyzers . | . . . Garrison Access . | . . . Total Hacks 20 | . 20 . Successful 11 | . 11 . Failed 9 | . 9 . Catastrophic 1 | . 1 . Database Lockouts . | . . . Manual 8 | . 8 . Terminals 8 | . 8 . Fabricators . | . . . Repair Stations 3 | . 3 . Recycling Units 9 | . 9 . Scanalyzers . | . . . Garrison Access . | . . . Terminal Hacks 3 | . 3 . Robot Analysis 3 | . 3 . Fabricator Hacks . | . . . Repair Station Hacks 2 | . 2 . Scan Component 1 | . 1 . Repair 1 | . 1 . Recycling Unit Hacks 4 | . 4 . Process 1 | . 1 . Retrieve Matter 2 | . 2 . Retrieve Components 1 | . 1 . Scanalyzer . | . . . Garrison Access Hacks . | . . . Unauthorized Hacks 2 | . 2 . Terminals . | . . . Fabricators . | . . . Repair Stations . | . . . Recycling Units 2 | . 2 . Tunnel 2 | . 2 . Scanalyzers . | . . . Garrison Access . | . . . Data Cores Recovered . | . . . Used . | . . . Hacking Detections 5 | . 5 . Full Trace Events . | . . . Feedback Events . | . . . Feedback Blocked . | . . . Robot Schematics Acquired . | . . . Robots Built . | . . . Authchips . | . . . Time . | . . . Total Robot Build Rating . | . . . Part Schematics Acquired . | . . . Parts Built . | . . . Authchips . | . . . Time . | . . . Total Part Build Rating . | . . . Parts Repaired 1 | . 1 . Time 26 | . 26 . Parts Recycled . | . . . Recycled Matter 193 | . 193 . Retrieved Matter 215 | . 215 . Retrieved Components 1 | . 1 . Parts Scanalyzed . | . . . Part Schematics Acquired . | . . . Parts Damaged . | . . . Bothacking | -11 -10 -10 ------------ Run | Yrd Mat Sub Used RIF Installer . | . . . Robots Hacked . | . . . Non-combat . | . . . Combat . | . . . Robot Hacks Applied . | . . . Relay Couplers Released . | . . . Fabnet Peak Effective % . | . . . Robots Rewired . | . . . Allies Hacked . | . . . Hacks Repelled . | . . . Allies | -11 -10 -10 -------- Run | Yrd Mat Sub Total Allies . | . . . Largest Group . | . . . Highest-Rated Group . | . . . Highest-Rated Ally . | . . . Total Orders . | . . . Ally Attacks . | . . . Total Damage . | . . . Kills . | . . . Allies Corrupted . | . . . Allies Melted . | . . . Intel | -11 -10 -10 ------- Run | Yrd Mat Sub Active Infowar (turns) 1204 | 63 818 323 Sensors 11 | . . 11 Seismic 1193 | 63 818 312 Robot Analysis Total 3 | . 3 . Derelict Logs Recovered . | . . . Drone Launches . | . . . Drone Recoveries . | . . . Exploration | -11 -10 -10 ------------- Run | Yrd Mat Sub Turns Passed 1361 | 114 818 429 Spaces Moved 751 | 52 443 256 Core 1 | 1 . . Treads 97 | 45 52 . Legs . | . . . Wheels 653 | 6 391 256 Hover . | . . . Flight . | . . . Fastest Speed 50 | 50 140 140 Average Speed 150 | 148 156 140 Slowest Speed 320 | 160 320 140 Overloaded Moves . | . . . Propulsion Burnouts . | . . . Robots Hopped . | . . . Potential Cave-ins . | . . . Cave-ins Triggered . | . . . Exploration Rate (%) 34 | 6 76 21 Regions Visited 2 Branch Regions 1 Pre-discovered Areas 2 | . 2 . Known Exits Taken . | . . . Unknown Exits Taken 2 | 1 1 . Scrap Searched . | . . . Spaces Dug . | . . . Terrain Destroyed . | . . . Melee . | . . . Projectile . | . . . AOE . | . . . Terrain Rammed . | . . . Walls Destroyed . | . . . Machines Disabled . | . . . Actions | -11 -10 -10 --------- Run | Yrd Mat Sub Total 888 | 71 523 294 Wait 43 | . 33 10 Move 749 | 51 442 256 Hop . | . . . Pick Up 25 | 6 16 3 Fast Attach 10 | 7 3 . Attach 4 | . . 4 Detach 2 | . 2 . Swap 2 | . 2 . Drop 5 | . 2 3 Fire 47 | 7 22 18 Melee . | . . . Ram . | . . . Kick . | . . . Crush . | . . . Escape Stasis . | . . . Rewire 1 | . 1 . Trap . | . . . Miscellaneous . | . . . Route ------- -11/Scrapyard -10/Materials (discovered 5 exits: [*Mat x2] / [*Min x2] / [*Sub]) -10/Subcaves History --------- Turn | Location | Event 18 | -11/Scrapyard | Discovered new exit (range 15) 115 | -11/Scrapyard | Entered Materials 228 | -10/Materials | Repaired Hcp. Storage Unit 306 | -10/Materials | Build established: Mutant 330 | -10/Materials | Discovered new exit (range 13) 410 | -10/Materials | Discovered new exit (range 16) 487 | -10/Materials | Discovered new exit (range 15) 569 | -10/Materials | Discovered new exit (range 6) 920 | -10/Materials | Discovered new exit (range 10) 933 | -10/Materials | Entered Subcaves 934 | -10/Subcaves | Approached by a straggling Scientist 1007 | -10/Subcaves | Shifting Twisted Machinery released Sub. Laser 1024 | -10/Subcaves | Shifting Twisted Machinery released Sub. Power Source 1339 | -10/Subcaves | Core integrity fell below 50% 1359 | -10/Subcaves | Core integrity fell below 20% 1362 | -10/Subcaves | Destroyed by A4-1BY(R) with Subdweller Beam Cannon Last Messages --------------- 01258_ Acquired 7 matter. 01260_ Acquired 30 matter. 01269_ Subatomizers dissect the Wheel. 01282_ Dropped Lgt. Treads. 01283_ Acquired Machine Analyzer. 01291_ Subatomizers dissect the Wheel. 01296_ Dropped Lgt. Treads. 01297_ Acquired Sub. Monowheel. 01301_ Dropped Ion Engine. 01301_ Acquired Sub. Power Source. 01318_ Subatomizers dissect the Wheel. 01321_ %BAF08J&:DG6YTW A7K41N6HWNKW|K1WGCR> 01338_ Wheel destroyed. 01338_ Imp. Treads destroyed. 01338_ Sensor Array destroyed. 01340_ Critical hit (Meltdown: +280). 01344_ Hvy. Assault Rifle destroyed. 01354_ Lgt. Ion Engine destroyed. 01357_ 81-2YL(R) suffers critical hit (Destroy). 01357_ Destroyed Sub. Power Source. Map ----- +----------------------------------------------------+ | ## ##???????????????????????????????????????? | | #### ####????????????????????????????????????? | | #??# #????????????????????????????????????? | | #?## #????????????????????????????????????? | | #?# ##????????????????????????????????????? | | #?# #?????????????????????????????????????? | | #?## ####?????????????????????????????????????? | | ?# ##???#????????????????????????????????????? | | ?# ##??? ##???????????????????????????????????? | | ?# ###?# #???????????????????????????????????? | | ?## ## #???????????????????????????????????? | | ?# #???????????????????????????????????? | | ?## #???????????????????????????????????? | | ??## ## #??????????????????????????????????? | | ???# #?# #??????????????????????????????????? | | ????## ### ##??????####????????????????????????? | | ????# # # #?????### #####????????????????????? | | ????# ###?### # #????????????????????? | | ? # # ### % ?????????????????????? | | ## #### ?????????????"#???????? | | ## #### % ; #??##?????????? "#??????? | | ###?# ### % ####;#????????? #??????? | | ????# #???????? ##?????? | | ????# %#??????? #?????? | | ????### # % #??????## #?????? | | ??????###### ! !@###?????# #?????? | | ????????####; %%R;####????# #??????? | | ???????## # !R=* #???# #???????? | | ??????## %"# #### #???????? | | ??????# "##### ## = #???????? | | ??????## ## ""%#??# ### =% #???????? | | ???????# ####" ##??####?# * #???????? | | ???????# #?# #????# ## % ##???????? | | ???????# "#? ##????# ### ##????????? | | ???????""##? #?????## #?# ##?????????? | | ???????#""??""""??????# "#? " #??????????? | | ??????? "?"""" ?????## " "" ##??????????? | | ??????? ""???? ??????### """"##???????????? | | ???????#"#????? ????????## ?###????????????? | | ??????? ????????????????### #???????????????? | | ????????????????????????????? ###???????????????? | | ????????????????????????????? #?????????????????? | | ????????????????????????????? ?????????????????? | | ????????????????????????????? ?????????????????? | | ????????????????????????????? ??????????????????? | | ?????????????????????????????????????????????????? | | ?????????????????????????????????????????????????? | | ?????????????????????????????????????????????????? | | ?????????????????????????????????????????????????? | | ?????????????????????????????????????????????????? | +----------------------------------------------------+ Best States ------------- Heat Dissipation 25 Energy Generation 10 Energy Capacity 125 Matter Stores 300 Matter Capacity 300 Sight Range 16 Robot Scan Range 14 Terrain Scan Density 10 Evasion (%) 44 Recoil Reduction 1 Item Schematics ----------------- None Robot Schematics ------------------ None Fabricated ------------ Nothing Repaired ---------- Hcp. Storage Unit | 42% | -10/Materials Alien Tech Used ----------------- None Achievements -------------- None Challenges ------------ None Game ------ Seed DeuteriumImpactGun Manual? 0 Play Time 00:12:34 Cumulative 64.0 hours Start 2025.09.20 @ 06:27:01 End 2025.09.20 @ 06:37:31 Sessions 1 Manual Loads 0 Difficulty Rogue Special Mode None Game No. 124 Rogue 124 Adventurer 0 Explorer 0 Win Type - Total 0 Types 0/0/0/0/0/0/0/0/0/0 Lore% 50 Gallery% 36 Achievement% 34 Wizard Run 0 Options --------- Layout 2 ASCII 0 Keyboard 1 Movement Arrows Keybinds 0 Fullscreen 2 Font 32/SmallcapsGlow Map View 50x44 Zoom Use 0% Tactical HUD 1 Map Filters NONE Filters NONE Steam 1 RUN: a5ff4b08-9fb1-455e-b3d6-3d3aced7b0fb